[Event "Titled Tuesday Blitz May 2 Late 2023"]
[White "Petrovic, Aleksa"]
[Black "Jodorcovsky Werjivker, Paulo"]
[WhiteFideId "967629"]
[BlackFideId "3700305"]
[WhiteElo "2309"]
[BlackElo "2120"]
[Result "1-0"]
[Round "04"]
[TimeControl "180+2"]
[Date "2023.05.02"]
[WhiteClock "0:00:02"]
[BlackClock "0:00:05"]

1. e4 {[%clk 0:03:00]}  e5 {[%clk 0:02:55]} 2. Nf3 {[%clk 0:02:59]}  Nc6 {[%clk 0:02:53]} 3. Bc4 {[%clk 0:02:58]}  Nf6 {[%clk 0:02:53]} 4. d4 {[%clk 0:02:58]}  exd4 {[%clk 0:02:51]} 5. O-O {[%clk 0:02:58]}  Nxe4 {[%clk 0:02:39]} 6. Nc3 {[%clk 0:02:56]}  Nxc3 {[%clk 0:02:35]} 7. bxc3 {[%clk 0:02:52]}  Be7 {[%clk 0:02:30]} 8. cxd4 {[%clk 0:02:33]}  d5 {[%clk 0:02:24]} 9. Bd3 {[%clk 0:02:31]}  O-O {[%clk 0:02:22]} 10. c3 {[%clk 0:02:29]}  Bg4 {[%clk 0:02:02]} 11. h3 {[%clk 0:02:25]}  Bh5 {[%clk 0:01:59]} 12. Rb1 {[%clk 0:02:25]}  Rb8 {[%clk 0:01:57]} 13. Re1 {[%clk 0:02:16]}  Bg6 {[%clk 0:01:50]} 14. Bf4 {[%clk 0:02:09]}  Bd6 {[%clk 0:01:36]} 15. Bg5 {[%clk 0:01:54]}  Qd7 {[%clk 0:01:31]} 16. Ne5 {[%clk 0:01:32]}  Bxe5 {[%clk 0:01:26]} 17. dxe5 {[%clk 0:01:33]}  Bxd3 {[%clk 0:01:15]} 18. Qxd3 {[%clk 0:01:31]}  h6 {[%clk 0:00:59]} 19. Bc1 {[%clk 0:01:20]}  Rfe8 {[%clk 0:00:55]} 20. f4 {[%clk 0:01:17]}  Ne7 {[%clk 0:00:46]} 21. g4 {[%clk 0:01:14]}  c5 {[%clk 0:00:37]} 22. f5 {[%clk 0:01:14]}  Nc6 {[%clk 0:00:35]} 23. Bf4 {[%clk 0:01:12]}  Rbd8 {[%clk 0:00:33]} 24. Rbd1 {[%clk 0:01:07]}  b6 {[%clk 0:00:32]} 25. h4 {[%clk 0:01:05]}  Na5 {[%clk 0:00:25]} 26. g5 {[%clk 0:01:01]}  h5 {[%clk 0:00:21]} 27. Qe2 {[%clk 0:00:45]}  Qxf5 {[%clk 0:00:19]} 28. Bg3 {[%clk 0:00:37]}  Qg4 {[%clk 0:00:18]} 29. Qxg4 {[%clk 0:00:35]}  hxg4 {[%clk 0:00:19]} 30. Kg2 {[%clk 0:00:34]}  Nc4 {[%clk 0:00:19]} 31. Bf4 {[%clk 0:00:34]}  Re6 {[%clk 0:00:19]} 32. Kg3 {[%clk 0:00:34]}  g6 {[%clk 0:00:16]} 33. Kxg4 {[%clk 0:00:34]}  Kg7 {[%clk 0:00:16]} 34. h5 {[%clk 0:00:34]}  gxh5+ {[%clk 0:00:16]} 35. Kxh5 {[%clk 0:00:35]}  Rh8+ {[%clk 0:00:17]} 36. Kg4 {[%clk 0:00:35]}  Nb2 {[%clk 0:00:15]} 37. Rd2 {[%clk 0:00:32]}  Nc4 {[%clk 0:00:15]} 38. Rh2 {[%clk 0:00:31]}  Rxh2 {[%clk 0:00:15]} 39. Bxh2 {[%clk 0:00:32]}  Nd2 {[%clk 0:00:14]} 40. Bf4 {[%clk 0:00:31]}  Ne4 {[%clk 0:00:14]} 41. Re3 {[%clk 0:00:24]}  Nf2+ {[%clk 0:00:13]} 42. Kg3 {[%clk 0:00:19]}  d4 {[%clk 0:00:12]} 43. cxd4 {[%clk 0:00:18]}  cxd4 {[%clk 0:00:13]} 44. Re2 {[%clk 0:00:18]}  Nd3 {[%clk 0:00:13]} 45. Rd2 {[%clk 0:00:14]}  Nxf4 {[%clk 0:00:13]} 46. Kxf4 {[%clk 0:00:15]}  Rc6 {[%clk 0:00:13]} 47. Rxd4 {[%clk 0:00:15]}  Rc2 {[%clk 0:00:13]} 48. a4 {[%clk 0:00:14]}  Ra2 {[%clk 0:00:12]} 49. Kf5 {[%clk 0:00:13]}  Rf2+ {[%clk 0:00:12]} 50. Ke4 {[%clk 0:00:12]}  Kg6 {[%clk 0:00:12]} 51. Rd7 {[%clk 0:00:12]}  Kxg5 {[%clk 0:00:11]} 52. Rxa7 {[%clk 0:00:12]}  Rf4+ {[%clk 0:00:10]} 53. Kd5 {[%clk 0:00:12]}  Rf5 {[%clk 0:00:09]} 54. Kd6 {[%clk 0:00:08]}  Kf4 {[%clk 0:00:09]} 55. Ra6 {[%clk 0:00:06]}  Rxe5 {[%clk 0:00:09]} 56. Rxb6 {[%clk 0:00:06]}  Ra5 {[%clk 0:00:09]} 57. Rb4+ {[%clk 0:00:06]}  Kg5 {[%clk 0:00:08]} 58. Kc6 {[%clk 0:00:06]}  f5 {[%clk 0:00:07]} 59. Kb6 {[%clk 0:00:06]}  Ra8 {[%clk 0:00:07]} 60. a5 {[%clk 0:00:06]}  f4 {[%clk 0:00:07]} 61. a6 {[%clk 0:00:07]}  Kg4 {[%clk 0:00:08]} 62. Kb7 {[%clk 0:00:07]}  Rh8 {[%clk 0:00:07]} 63. Rc4 {[%clk 0:00:06]}  Rh1 {[%clk 0:00:05]} 64. a7 {[%clk 0:00:04]}  Rb1+ {[%clk 0:00:05]} 65. Kc6 {[%clk 0:00:03]}  Ra1 {[%clk 0:00:05]} 66. Kb6 {[%clk 0:00:03]}  Rb1+ {[%clk 0:00:05]} 67. Ka5 {[%clk 0:00:02]} 1-0


[Site "https://www.chess.com"]

[Event "Titled Tuesday Blitz May 2 Late 2023"]
[White "Ladan, Nicholas"]
[Black "Rose, Felix"]
[WhiteFideId "30918855"]
[BlackFideId "5105722"]
[WhiteElo "2167"]
[BlackElo "2039"]
[Result "1-0"]
[Round "04"]
[TimeControl "180+2"]
[Date "2023.05.02"]
[WhiteClock "0:01:08"]
[BlackClock "0:00:01"]

1. d4 {[%clk 0:02:59]}  d5 {[%clk 0:02:58]} 2. Bf4 {[%clk 0:02:59]}  Nf6 {[%clk 0:02:58]} 3. e3 {[%clk 0:02:56]}  e6 {[%clk 0:02:58]} 4. Nf3 {[%clk 0:02:54]}  Bd6 {[%clk 0:02:59]} 5. Nbd2 {[%clk 0:02:50]}  O-O {[%clk 0:02:58]} 6. Bd3 {[%clk 0:02:47]}  c5 {[%clk 0:02:58]} 7. c3 {[%clk 0:02:46]}  b6 {[%clk 0:02:58]} 8. Ne5 {[%clk 0:02:45]}  Bb7 {[%clk 0:02:47]} 9. O-O {[%clk 0:02:45]}  Nc6 {[%clk 0:02:47]} 10. a4 {[%clk 0:02:43]}  Qc7 {[%clk 0:02:46]} 11. Ndf3 {[%clk 0:02:39]}  Ne4 {[%clk 0:02:18]} 12. Nxc6 {[%clk 0:02:25]}  Bxf4 {[%clk 0:02:05]} 13. exf4 {[%clk 0:02:18]}  Bxc6 {[%clk 0:02:02]} 14. Bxe4 {[%clk 0:02:17]}  dxe4 {[%clk 0:02:02]} 15. Ne5 {[%clk 0:02:17]}  cxd4 {[%clk 0:01:56]} 16. Qxd4 {[%clk 0:02:17]}  Rfd8 {[%clk 0:01:32]} 17. Qc4 {[%clk 0:02:13]}  Rac8 {[%clk 0:01:32]} 18. Rfd1 {[%clk 0:02:11]}  Rd5 {[%clk 0:01:05]} 19. Nxc6 {[%clk 0:01:53]}  Qxc6 {[%clk 0:01:04]} 20. Qxc6 {[%clk 0:01:54]}  Rxc6 {[%clk 0:01:04]} 21. Rxd5 {[%clk 0:01:54]}  exd5 {[%clk 0:01:04]} 22. Rd1 {[%clk 0:01:55]}  Rc5 {[%clk 0:01:00]} 23. b4 {[%clk 0:01:53]}  Rxc3 {[%clk 0:00:59]} 24. f3 {[%clk 0:01:51]}  exf3 {[%clk 0:00:33]} 25. Rxd5 {[%clk 0:01:49]}  g6 {[%clk 0:00:32]} 26. Rd7 {[%clk 0:01:41]}  a5 {[%clk 0:00:26]} 27. bxa5 {[%clk 0:01:29]}  bxa5 {[%clk 0:00:23]} 28. Ra7 {[%clk 0:01:29]}  Rc1+ {[%clk 0:00:15]} 29. Kf2 {[%clk 0:01:29]}  fxg2 {[%clk 0:00:16]} 30. Kxg2 {[%clk 0:01:29]}  Rc5 {[%clk 0:00:15]} 31. Kf3 {[%clk 0:01:29]}  Kg7 {[%clk 0:00:15]} 32. Kg4 {[%clk 0:01:29]}  h5+ {[%clk 0:00:13]} 33. Kf3 {[%clk 0:01:29]}  Kf6 {[%clk 0:00:11]} 34. Ra6+ {[%clk 0:01:28]}  Kf5 {[%clk 0:00:10]} 35. Ra7 {[%clk 0:01:22]}  f6 {[%clk 0:00:10]} 36. Ra6 {[%clk 0:01:16]}  Rc3+ {[%clk 0:00:10]} 37. Kg2 {[%clk 0:01:14]}  Kxf4 {[%clk 0:00:07]} 38. Rxf6+ {[%clk 0:01:14]}  Kg4 {[%clk 0:00:07]} 39. Rxg6+ {[%clk 0:01:12]}  Kf5 {[%clk 0:00:03]} 40. Ra6 {[%clk 0:01:09]}  Rc5 {[%clk 0:00:01]} 41. Kg3 {[%clk 0:01:09]}  Kg5 {[%clk 0:00:01]} 42. Rb6 {[%clk 0:01:08]}  Rc3+ {[%clk 0:00:01]} 43. Kg2 {[%clk 0:01:08]} 1-0


[Site "https://www.chess.com"]

[Event "Titled Tuesday Blitz May 2 Late 2023"]
[White "Stanisz, Patryk"]
[Black "Bilan, Danila"]
[WhiteFideId "1123106"]
[BlackFideId "24161918"]
[WhiteElo "2069"]
[BlackElo "2182"]
[Result "0-1"]
[Round "04"]
[TimeControl "180+2"]
[Date "2023.05.02"]
[WhiteClock "0:00:03"]
[BlackClock "0:00:18"]

1. d4 {[%clk 0:03:00]}  d5 {[%clk 0:02:58]} 2. c4 {[%clk 0:03:00]}  c6 {[%clk 0:02:58]} 3. Nf3 {[%clk 0:03:00]}  Nf6 {[%clk 0:02:58]} 4. Nc3 {[%clk 0:03:00]}  e6 {[%clk 0:02:58]} 5. e3 {[%clk 0:03:00]}  Nbd7 {[%clk 0:02:58]} 6. Qc2 {[%clk 0:03:01]}  Bd6 {[%clk 0:02:56]} 7. g4 {[%clk 0:03:01]}  h6 {[%clk 0:02:54]} 8. Rg1 {[%clk 0:03:01]}  dxc4 {[%clk 0:02:50]} 9. Bxc4 {[%clk 0:03:00]}  Nd5 {[%clk 0:02:51]} 10. Bd2 {[%clk 0:02:48]}  Qc7 {[%clk 0:02:47]} 11. h4 {[%clk 0:02:42]}  b6 {[%clk 0:02:37]} 12. a3 {[%clk 0:02:31]}  Bb7 {[%clk 0:02:34]} 13. O-O-O {[%clk 0:02:25]}  Nxc3 {[%clk 0:02:28]} 14. Bxc3 {[%clk 0:02:20]}  c5 {[%clk 0:02:01]} 15. Be2 {[%clk 0:02:16]}  cxd4 {[%clk 0:01:53]} 16. Nxd4 {[%clk 0:02:08]}  Bh2 {[%clk 0:01:33]} 17. Nxe6 {[%clk 0:01:31]}  fxe6 {[%clk 0:01:27]} 18. Qg6+ {[%clk 0:01:31]}  Kd8 {[%clk 0:01:19]} 19. Qxg7 {[%clk 0:01:10]}  Re8 {[%clk 0:01:14]} 20. Bb5 {[%clk 0:01:01]}  Bd5 {[%clk 0:01:02]} 21. e4 {[%clk 0:00:17]}  Qf4+ {[%clk 0:00:43]} 22. Kb1 {[%clk 0:00:10]}  Qxe4+ {[%clk 0:00:36]} 23. Ka1 {[%clk 0:00:10]}  Re7 {[%clk 0:00:36]} 24. Qh8+ {[%clk 0:00:08]}  Kc7 {[%clk 0:00:36]} 25. Qxh6 {[%clk 0:00:06]}  Bxg1 {[%clk 0:00:27]} 26. Rxg1 {[%clk 0:00:05]}  a6 {[%clk 0:00:27]} 27. Rc1 {[%clk 0:00:05]}  Kb7 {[%clk 0:00:20]} 28. Bf1 {[%clk 0:00:03]}  Nc5 {[%clk 0:00:18]} 0-1


[Site "https://www.chess.com"]

[Event "Titled Tuesday Blitz May 2 Late 2023"]
[White "Panico, Nick"]
[Black "Gurevich, Dmitry"]
[WhiteFideId "2026724"]
[BlackFideId "2000407"]
[WhiteElo "1982"]
[BlackElo "2506"]
[Result "0-1"]
[Round "04"]
[TimeControl "180+2"]
[Date "2023.05.02"]
[WhiteClock "0:00:29"]
[BlackClock "0:00:21"]

1. f4 {[%clk 0:02:59]}  d5 {[%clk 0:02:58]} 2. Nf3 {[%clk 0:02:59]}  g6 {[%clk 0:02:59]} 3. e3 {[%clk 0:03:00]}  Bg7 {[%clk 0:02:59]} 4. Be2 {[%clk 0:03:00]}  c5 {[%clk 0:02:57]} 5. O-O {[%clk 0:03:00]}  Nc6 {[%clk 0:02:57]} 6. d3 {[%clk 0:03:00]}  Nf6 {[%clk 0:02:52]} 7. Nc3 {[%clk 0:02:56]}  d4 {[%clk 0:02:51]} 8. Ne4 {[%clk 0:02:53]}  Nd5 {[%clk 0:02:45]} 9. exd4 {[%clk 0:02:40]}  cxd4 {[%clk 0:02:44]} 10. Bd2 {[%clk 0:02:28]}  O-O {[%clk 0:02:42]} 11. c4 {[%clk 0:02:26]}  Ne3 {[%clk 0:02:40]} 12. Bxe3 {[%clk 0:02:25]}  dxe3 {[%clk 0:02:40]} 13. Qc1 {[%clk 0:02:19]}  Qc7 {[%clk 0:02:33]} 14. Qxe3 {[%clk 0:02:14]}  Bxb2 {[%clk 0:02:31]} 15. Rab1 {[%clk 0:02:14]}  Bg7 {[%clk 0:02:31]} 16. Kh1 {[%clk 0:02:09]}  Rd8 {[%clk 0:02:27]} 17. Rbd1 {[%clk 0:01:57]}  Nd4 {[%clk 0:02:26]} 18. Nxd4 {[%clk 0:01:57]}  Bxd4 {[%clk 0:02:25]} 19. Qf3 {[%clk 0:01:52]}  Bd7 {[%clk 0:02:19]} 20. h4 {[%clk 0:01:48]}  h5 {[%clk 0:02:15]} 21. g4 {[%clk 0:01:45]}  Bxg4 {[%clk 0:02:13]} 22. Qg2 {[%clk 0:01:46]}  Qd7 {[%clk 0:02:05]} 23. Ng5 {[%clk 0:01:42]}  Bxe2 {[%clk 0:01:59]} 24. Qxe2 {[%clk 0:01:43]}  Qg4 {[%clk 0:01:56]} 25. Qxg4 {[%clk 0:01:40]}  hxg4 {[%clk 0:01:55]} 26. Kg2 {[%clk 0:01:38]}  f5 {[%clk 0:01:50]} 27. Ne6 {[%clk 0:01:36]}  Rd6 {[%clk 0:01:48]} 28. Ng5 {[%clk 0:01:36]}  Bf6 {[%clk 0:01:45]} 29. Rfe1 {[%clk 0:01:34]}  Rad8 {[%clk 0:01:43]} 30. Re3 {[%clk 0:01:33]}  Rb6 {[%clk 0:01:38]} 31. Rd2 {[%clk 0:01:32]}  Rb1 {[%clk 0:01:36]} 32. Ne6 {[%clk 0:01:29]}  Rd6 {[%clk 0:01:34]} 33. c5 {[%clk 0:01:27]}  Rd5 {[%clk 0:01:29]} 34. d4 {[%clk 0:01:25]}  Rb4 {[%clk 0:01:22]} 35. Red3 {[%clk 0:01:20]}  Kf7 {[%clk 0:01:18]} 36. Ng5+ {[%clk 0:01:15]}  Ke8 {[%clk 0:01:08]} 37. Ne6 {[%clk 0:01:10]}  Kd7 {[%clk 0:01:08]} 38. Nf8+ {[%clk 0:01:08]}  Kc6 {[%clk 0:01:08]} 39. Nxg6 {[%clk 0:01:08]}  Ra4 {[%clk 0:01:04]} 40. Ne5+ {[%clk 0:01:08]}  Kc7 {[%clk 0:00:55]} 41. h5 {[%clk 0:01:03]}  Rd8 {[%clk 0:00:52]} 42. Kg3 {[%clk 0:00:59]}  Rh8 {[%clk 0:00:51]} 43. Rh2 {[%clk 0:00:59]}  Rb4 {[%clk 0:00:48]} 44. Ng6 {[%clk 0:00:55]}  Rh6 {[%clk 0:00:46]} 45. Nf8 {[%clk 0:00:53]}  Kc6 {[%clk 0:00:42]} 46. Ne6 {[%clk 0:00:53]}  Kd5 {[%clk 0:00:42]} 47. Nc7+ {[%clk 0:00:52]}  Ke4 {[%clk 0:00:41]} 48. Rd1 {[%clk 0:00:43]}  Bxd4 {[%clk 0:00:39]} 49. Re2+ {[%clk 0:00:43]}  Be3 {[%clk 0:00:38]} 50. Rxe3+ {[%clk 0:00:43]}  Kxe3 {[%clk 0:00:37]} 51. Nd5+ {[%clk 0:00:44]}  Ke2 {[%clk 0:00:37]} 52. Nxb4 {[%clk 0:00:40]}  Kxd1 {[%clk 0:00:36]} 53. Kh4 {[%clk 0:00:41]}  Rxh5+ {[%clk 0:00:26]} 54. Kxh5 {[%clk 0:00:39]}  g3 {[%clk 0:00:26]} 55. Nd5 {[%clk 0:00:35]}  Ke2 {[%clk 0:00:25]} 56. Kh4 {[%clk 0:00:35]}  g2 {[%clk 0:00:24]} 57. Nc3+ {[%clk 0:00:34]}  Kf1 {[%clk 0:00:22]} 58. Kg5 {[%clk 0:00:29]}  g1=Q+ {[%clk 0:00:21]} 59. Kxf5 {[%clk 0:00:29]}  Qd4 {[%clk 0:00:21]} 60. Ne4 {[%clk 0:00:29]}  Qd5+ {[%clk 0:00:21]} 0-1


[Site "https://www.chess.com"]

[Event "Titled Tuesday Blitz May 2 Late 2023"]
[White "Sanhueza, Cristian"]
[Black "Ferro, Mario"]
[WhiteFideId "116815"]
[BlackFideId "810290"]
[WhiteElo "2219"]
[BlackElo "2217"]
[Result "1-0"]
[Round "04"]
[TimeControl "180+2"]
[Date "2023.05.02"]
[WhiteClock "0:01:29"]
[BlackClock "0:01:31"]

1. e4 {[%clk 0:03:00]}  b6 {[%clk 0:02:53]} 2. d4 {[%clk 0:03:00]}  Bb7 {[%clk 0:02:53]} 3. Nc3 {[%clk 0:03:01]}  e6 {[%clk 0:02:53]} 4. Bd3 {[%clk 0:02:57]}  Nf6 {[%clk 0:02:50]} 5. Qe2 {[%clk 0:02:52]}  Bb4 {[%clk 0:02:47]} 6. Bd2 {[%clk 0:02:53]}  d5 {[%clk 0:02:41]} 7. e5 {[%clk 0:02:50]}  Bxc3 {[%clk 0:02:40]} 8. Bxc3 {[%clk 0:02:30]}  Ne4 {[%clk 0:02:40]} 9. Qg4 {[%clk 0:02:13]}  O-O {[%clk 0:02:33]} 10. Nh3 {[%clk 0:01:44]}  h6 {[%clk 0:01:49]} 11. Nf4 {[%clk 0:01:34]}  c5 {[%clk 0:01:31]} 12. h4 {[%clk 0:01:29]} 1-0


[Site "https://www.chess.com"]

[Event "Titled Tuesday Blitz May 2 Late 2023"]
[White "Lopez Perdomo, Juan David"]
[Black "Seletsky, Grigory"]
[WhiteFideId "4405137"]
[BlackFideId "14112191"]
[WhiteElo "1965"]
[BlackElo "2490"]
[Result "1-0"]
[Round "04"]
[TimeControl "180+2"]
[Date "2023.05.02"]
[WhiteClock "0:00:32"]
[BlackClock "0:00:34"]

1. e4 {[%clk 0:03:00]}  c5 {[%clk 0:02:59]} 2. d4 {[%clk 0:02:41]}  cxd4 {[%clk 0:02:58]} 3. c3 {[%clk 0:02:41]}  d3 {[%clk 0:02:59]} 4. Nf3 {[%clk 0:02:41]}  Nc6 {[%clk 0:02:59]} 5. Bxd3 {[%clk 0:02:41]}  g6 {[%clk 0:02:59]} 6. Bg5 {[%clk 0:02:36]}  Bg7 {[%clk 0:03:00]} 7. O-O {[%clk 0:02:35]}  d6 {[%clk 0:03:00]} 8. Nbd2 {[%clk 0:02:34]}  Nf6 {[%clk 0:03:01]} 9. Qe2 {[%clk 0:02:30]}  Nd7 {[%clk 0:02:57]} 10. Nc4 {[%clk 0:02:23]}  O-O {[%clk 0:02:55]} 11. Nxd6 {[%clk 0:02:19]}  Nde5 {[%clk 0:02:48]} 12. Nxc8 {[%clk 0:02:13]}  Qxd3 {[%clk 0:02:38]} 13. Qxd3 {[%clk 0:02:07]}  Nxd3 {[%clk 0:02:38]} 14. Nxe7+ {[%clk 0:02:08]}  Nxe7 {[%clk 0:02:36]} 15. Bxe7 {[%clk 0:02:09]}  Rfe8 {[%clk 0:02:36]} 16. Ba3 {[%clk 0:02:10]}  Rxe4 {[%clk 0:02:36]} 17. Rad1 {[%clk 0:02:08]}  Ne5 {[%clk 0:02:22]} 18. Nxe5 {[%clk 0:02:04]}  Rxe5 {[%clk 0:02:21]} 19. Rfe1 {[%clk 0:02:04]}  Rxe1+ {[%clk 0:02:18]} 20. Rxe1 {[%clk 0:02:00]}  Rd8 {[%clk 0:02:18]} 21. Kf1 {[%clk 0:01:57]}  Bf8 {[%clk 0:02:12]} 22. Bxf8 {[%clk 0:01:52]}  Kxf8 {[%clk 0:02:12]} 23. Ke2 {[%clk 0:01:53]}  Re8+ {[%clk 0:02:11]} 24. Kd2 {[%clk 0:01:52]}  Rd8+ {[%clk 0:02:12]} 25. Kc2 {[%clk 0:01:52]}  Rd5 {[%clk 0:02:07]} 26. h3 {[%clk 0:01:50]}  h5 {[%clk 0:02:06]} 27. Re4 {[%clk 0:01:49]}  b6 {[%clk 0:01:55]} 28. c4 {[%clk 0:01:44]}  Rf5 {[%clk 0:01:54]} 29. f4 {[%clk 0:01:40]}  f6 {[%clk 0:01:54]} 30. g4 {[%clk 0:01:37]}  hxg4 {[%clk 0:01:53]} 31. hxg4 {[%clk 0:01:37]}  Rc5 {[%clk 0:01:49]} 32. b4 {[%clk 0:01:37]}  Rc8 {[%clk 0:01:45]} 33. a4 {[%clk 0:01:34]}  Kf7 {[%clk 0:01:43]} 34. Rd4 {[%clk 0:01:30]}  Ke6 {[%clk 0:01:41]} 35. Kd3 {[%clk 0:01:29]}  Rh8 {[%clk 0:01:40]} 36. Re4+ {[%clk 0:01:27]}  Kd6 {[%clk 0:01:39]} 37. Kd4 {[%clk 0:01:26]}  Rh1 {[%clk 0:01:30]} 38. c5+ {[%clk 0:01:25]}  bxc5+ {[%clk 0:01:30]} 39. bxc5+ {[%clk 0:01:26]}  Kd7 {[%clk 0:01:30]} 40. Kd5 {[%clk 0:01:24]}  Rd1+ {[%clk 0:01:24]} 41. Rd4 {[%clk 0:01:24]}  Rc1 {[%clk 0:01:24]} 42. Re4 {[%clk 0:00:58]}  Rd1+ {[%clk 0:01:22]} 43. Kc4 {[%clk 0:00:59]}  Rg1 {[%clk 0:01:12]} 44. Rd4+ {[%clk 0:00:53]}  Ke7 {[%clk 0:01:10]} 45. c6 {[%clk 0:00:50]}  Ke6 {[%clk 0:01:06]} 46. Kc5 {[%clk 0:00:43]}  Rc1+ {[%clk 0:00:55]} 47. Rc4 {[%clk 0:00:37]}  Rb1 {[%clk 0:00:36]} 48. Re4+ {[%clk 0:00:30]}  Kf7 {[%clk 0:00:35]} 49. c7 {[%clk 0:00:31]}  Rc1+ {[%clk 0:00:34]} 50. Rc4 {[%clk 0:00:32]} 1-0


[Site "https://www.chess.com"]

[Event "Titled Tuesday Blitz May 2 Late 2023"]
[White "Sai Han Thiha"]
[Black "Kalaiyalahan, Akshaya"]
[WhiteFideId "13012290"]
[BlackFideId "422894"]
[WhiteElo "1954"]
[BlackElo "2043"]
[Result "1-0"]
[Round "04"]
[TimeControl "180+2"]
[Date "2023.05.02"]
[WhiteClock "0:00:06"]
[BlackClock "0:00:01"]

1. d4 {[%clk 0:03:00]}  Nf6 {[%clk 0:02:58]} 2. c4 {[%clk 0:03:01]}  g6 {[%clk 0:02:59]} 3. Nc3 {[%clk 0:03:01]}  Bg7 {[%clk 0:03:00]} 4. e4 {[%clk 0:03:01]}  d6 {[%clk 0:03:00]} 5. Nf3 {[%clk 0:03:02]}  O-O {[%clk 0:03:00]} 6. Be2 {[%clk 0:03:03]}  e5 {[%clk 0:03:00]} 7. Be3 {[%clk 0:03:04]}  Nc6 {[%clk 0:02:59]} 8. d5 {[%clk 0:03:04]}  Ne7 {[%clk 0:02:58]} 9. Nd2 {[%clk 0:03:05]}  Nd7 {[%clk 0:02:57]} 10. f3 {[%clk 0:02:52]}  f5 {[%clk 0:02:56]} 11. b4 {[%clk 0:02:52]}  f4 {[%clk 0:02:56]} 12. Bf2 {[%clk 0:02:52]}  a5 {[%clk 0:02:57]} 13. bxa5 {[%clk 0:02:24]}  Rxa5 {[%clk 0:02:40]} 14. Nb3 {[%clk 0:02:25]}  Ra8 {[%clk 0:02:34]} 15. c5 {[%clk 0:02:25]}  dxc5 {[%clk 0:02:30]} 16. Nxc5 {[%clk 0:02:23]}  Nxc5 {[%clk 0:02:30]} 17. Bxc5 {[%clk 0:02:24]}  Kh8 {[%clk 0:02:14]} 18. a4 {[%clk 0:02:21]}  Bd7 {[%clk 0:02:14]} 19. O-O {[%clk 0:02:06]}  b6 {[%clk 0:02:11]} 20. Bb4 {[%clk 0:01:53]}  Rf6 {[%clk 0:02:11]} 21. Bb5 {[%clk 0:01:46]}  g5 {[%clk 0:02:10]} 22. d6 {[%clk 0:01:19]}  cxd6 {[%clk 0:01:57]} 23. Nd5 {[%clk 0:01:16]}  Nxd5 {[%clk 0:01:53]} 24. Qxd5 {[%clk 0:01:16]}  Be6 {[%clk 0:01:39]} 25. Qxd6 {[%clk 0:01:10]}  Qxd6 {[%clk 0:01:38]} 26. Bxd6 {[%clk 0:01:11]}  Bc4 {[%clk 0:01:30]} 27. Bxc4 {[%clk 0:00:29]}  Rxd6 {[%clk 0:01:27]} 28. Bd5 {[%clk 0:00:30]}  Rc8 {[%clk 0:01:22]} 29. Rfc1 {[%clk 0:00:30]}  Rdd8 {[%clk 0:01:09]} 30. Rab1 {[%clk 0:00:30]}  Bf8 {[%clk 0:01:09]} 31. Kf1 {[%clk 0:00:26]}  Bc5 {[%clk 0:01:08]} 32. Ke2 {[%clk 0:00:25]}  Rc7 {[%clk 0:01:02]} 33. Rb5 {[%clk 0:00:21]}  Rdc8 {[%clk 0:00:39]} 34. Be6 {[%clk 0:00:21]}  Re8 {[%clk 0:00:38]} 35. Bf5 {[%clk 0:00:18]}  Ra8 {[%clk 0:00:26]} 36. Rc4 {[%clk 0:00:16]}  Ra5 {[%clk 0:00:22]} 37. Kd3 {[%clk 0:00:04]}  Rxb5 {[%clk 0:00:20]} 38. axb5 {[%clk 0:00:05]}  Ra7 {[%clk 0:00:19]} 39. Rc2 {[%clk 0:00:06]}  Ra3+ {[%clk 0:00:18]} 40. Kc4 {[%clk 0:00:06]}  Kg7 {[%clk 0:00:18]} 41. Kd5 {[%clk 0:00:07]}  Rd3+ {[%clk 0:00:14]} 42. Kxe5 {[%clk 0:00:07]}  Rb3 {[%clk 0:00:11]} 43. Bd7 {[%clk 0:00:06]}  h6 {[%clk 0:00:11]} 44. Kf5 {[%clk 0:00:06]}  Rb1 {[%clk 0:00:08]} 45. h4 {[%clk 0:00:06]}  gxh4 {[%clk 0:00:03]} 46. Kxf4 {[%clk 0:00:07]}  Be7 {[%clk 0:00:01]} 47. Bh3 {[%clk 0:00:06]}  Bg5+ {[%clk 0:00:01]} 48. Kf5 {[%clk 0:00:06]}  Rxb5+ {[%clk 0:00:01]} 49. Ke6 {[%clk 0:00:07]}  Rc5 {[%clk 0:00:01]} 50. Rb2 {[%clk 0:00:06]}  b5 {[%clk 0:00:01]} 51. Ra2 {[%clk 0:00:07]}  b4 {[%clk 0:00:01]} 52. Ra7+ {[%clk 0:00:07]}  Kg6 {[%clk 0:00:01]} 53. Bf5+ {[%clk 0:00:08]}  Kh5 {[%clk 0:00:01]} 54. Rg7 {[%clk 0:00:06]}  b3 {[%clk 0:00:01]} 55. Bg4# {[%clk 0:00:06]} 1-0


[Site "https://www.chess.com"]

[Event "Titled Tuesday Blitz May 2 Late 2023"]
[White "Dovbnia, Nikita"]
[Black "Pasti, Aron"]
[WhiteFideId "54104599"]
[BlackFideId "785857"]
[WhiteElo "2076"]
[BlackElo "2173"]
[Result "1-0"]
[Round "04"]
[TimeControl "180+2"]
[Date "2023.05.02"]
[WhiteClock "0:00:30"]
[BlackClock "0:00:10"]

1. Nf3 {[%clk 0:02:59]}  d5 {[%clk 0:02:41]} 2. b3 {[%clk 0:02:59]}  c6 {[%clk 0:02:39]} 3. Bb2 {[%clk 0:02:59]}  Bg4 {[%clk 0:02:40]} 4. e3 {[%clk 0:02:59]}  Nd7 {[%clk 0:02:38]} 5. Be2 {[%clk 0:03:00]}  Ngf6 {[%clk 0:02:36]} 6. c4 {[%clk 0:03:00]}  e6 {[%clk 0:02:36]} 7. Nc3 {[%clk 0:03:00]}  Bd6 {[%clk 0:02:37]} 8. O-O {[%clk 0:02:59]}  O-O {[%clk 0:02:37]} 9. h3 {[%clk 0:02:58]}  Bh5 {[%clk 0:02:36]} 10. Rc1 {[%clk 0:02:55]}  e5 {[%clk 0:02:32]} 11. cxd5 {[%clk 0:02:38]}  cxd5 {[%clk 0:02:24]} 12. Nb5 {[%clk 0:02:38]}  Bb8 {[%clk 0:02:19]} 13. Ba3 {[%clk 0:02:30]}  Re8 {[%clk 0:02:19]} 14. Nd6 {[%clk 0:02:25]}  Re6 {[%clk 0:01:28]} 15. Nxb7 {[%clk 0:02:23]}  Qe8 {[%clk 0:01:23]} 16. Nc5 {[%clk 0:02:18]}  Rb6 {[%clk 0:01:18]} 17. Nxd7 {[%clk 0:02:12]}  Nxd7 {[%clk 0:01:19]} 18. Qc2 {[%clk 0:02:04]}  Bd6 {[%clk 0:01:16]} 19. Bxd6 {[%clk 0:01:48]}  Rxd6 {[%clk 0:01:17]} 20. Qc7 {[%clk 0:01:45]}  Rb6 {[%clk 0:01:15]} 21. Nxe5 {[%clk 0:01:25]}  Nxe5 {[%clk 0:00:37]} 22. Bxh5 {[%clk 0:01:21]}  Nd3 {[%clk 0:00:37]} 23. Rc3 {[%clk 0:01:18]}  Nb4 {[%clk 0:00:37]} 24. a3 {[%clk 0:01:11]}  Na6 {[%clk 0:00:37]} 25. Qf4 {[%clk 0:00:57]}  Rab8 {[%clk 0:00:24]} 26. b4 {[%clk 0:00:57]}  g6 {[%clk 0:00:16]} 27. Bf3 {[%clk 0:00:56]}  Qd8 {[%clk 0:00:14]} 28. Rfc1 {[%clk 0:00:53]}  d4 {[%clk 0:00:14]} 29. exd4 {[%clk 0:00:50]}  Rd6 {[%clk 0:00:14]} 30. b5 {[%clk 0:00:49]}  Rxd4 {[%clk 0:00:10]} 31. Qg3 {[%clk 0:00:30]} 1-0


[Site "https://www.chess.com"]